[Event "Late-Titled-Tuesday-Blitz-November-28-2023"]
[Site "Chess.com"]
[Date "2023.11.28"]
[Round "7"]
[White "Zhigalko_Sergei"]
[Black "grandemestregringo"]
[Result "1-0"]
[WhiteElo "2902"]
[BlackElo "2648"]
[TimeControl "180+1"]
[EndTime "15:15:18 PST"]
[Termination "Zhigalko_Sergei won on time"]

1. e4 {[%clk 0:03:00.9]} 1... e5 {[%clk 0:02:59.1]} 2. Nf3 {[%clk 0:03:01]} 2...
Nc6 {[%clk 0:02:59]} 3. Bc4 {[%clk 0:03:00.7]} 3... Nf6 {[%clk 0:02:57.7]} 4. d3
{[%clk 0:02:59.8]} 4... Be7 {[%clk 0:02:56.7]} 5. O-O {[%clk 0:02:59.5]} 5...
O-O {[%clk 0:02:56.7]} 6. Re1 {[%clk 0:02:59.8]} 6... d6 {[%clk 0:02:57]} 7. c3
{[%clk 0:02:59.9]} 7... Na5 {[%clk 0:02:53.2]} 8. Bb5 {[%clk 0:02:59]} 8... a6
{[%clk 0:02:53.5]} 9. Ba4 {[%clk 0:02:59.3]} 9... b5 {[%clk 0:02:53.7]} 10. Bc2
{[%clk 0:02:59.6]} 10... c5 {[%clk 0:02:53.9]} 11. Nbd2 {[%clk 0:02:59.8]} 11...
h6 {[%clk 0:02:46.4]} 12. Nf1 {[%clk 0:02:58]} 12... Re8 {[%clk 0:02:46.1]} 13.
Ng3 {[%clk 0:02:57.5]} 13... Bf8 {[%clk 0:02:38.7]} 14. h3 {[%clk 0:02:55.2]}
14... Nc6 {[%clk 0:02:32.7]} 15. d4 {[%clk 0:02:43.3]} 15... cxd4 {[%clk
0:02:07.8]} 16. cxd4 {[%clk 0:02:43.5]} 16... exd4 {[%clk 0:02:06.3]} 17. Nxd4
{[%clk 0:02:43.5]} 17... Bb7 {[%clk 0:02:05.6]} 18. Bf4 {[%clk 0:02:26.4]} 18...
Rc8 {[%clk 0:01:59.7]} 19. Nxc6 {[%clk 0:02:14.3]} 19... Rxc6 {[%clk 0:01:44.6]}
20. Qd3 {[%clk 0:02:04.6]} 20... Qc8 {[%clk 0:01:28.2]} 21. Bb3 {[%clk 0:02:04]}
21... Rc5 {[%clk 0:01:18.6]} 22. Rad1 {[%clk 0:01:56]} 22... a5 {[%clk
0:01:04.4]} 23. a3 {[%clk 0:01:43.9]} 23... a4 {[%clk 0:01:02.7]} 24. Ba2 {[%clk
0:01:44.1]} 24... Qc6 {[%clk 0:00:58.6]} 25. f3 {[%clk 0:01:35.6]} 25... Rc2
{[%clk 0:00:48.6]} 26. Rc1 {[%clk 0:01:27.9]} 26... Rc8 {[%clk 0:00:46.6]} 27.
Rxc2 {[%clk 0:01:21.1]} 27... Qxc2 {[%clk 0:00:46.5]} 28. Qxb5 {[%clk
0:01:21.1]} 28... Bc6 {[%clk 0:00:36.1]} 29. Qe2 {[%clk 0:01:07.3]} 29... Ba8
{[%clk 0:00:34.7]} 30. Qxc2 {[%clk 0:01:04]} 30... Rxc2 {[%clk 0:00:34.3]} 31.
Re2 {[%clk 0:01:04.9]} 31... Rc8 {[%clk 0:00:32.5]} 32. Rd2 {[%clk 0:01:01.7]}
32... d5 {[%clk 0:00:27.5]} 33. Bxd5 {[%clk 0:00:40.4]} 33... Bc5+ {[%clk
0:00:17.6]} 34. Kh2 {[%clk 0:00:35.4]} 34... Nxd5 {[%clk 0:00:15.7]} 35. exd5
{[%clk 0:00:36.3]} 35... Rd8 {[%clk 0:00:15]} 36. Ne4 {[%clk 0:00:34.2]} 36...
Bb6 {[%clk 0:00:09.6]} 37. Nc3 {[%clk 0:00:34.3]} 37... Ba5 {[%clk 0:00:09.1]}
38. d6 {[%clk 0:00:33.9]} 38... f6 {[%clk 0:00:07.3]} 39. Rd4 {[%clk 0:00:28.6]}
39... g5 {[%clk 0:00:05.7]} 40. Bg3 {[%clk 0:00:28.2]} 40... Bc6 {[%clk
0:00:05.3]} 41. Nxa4 {[%clk 0:00:25.2]} 41... f5 {[%clk 0:00:04.5]} 42. Be5
{[%clk 0:00:24.1]} 42... Re8 {[%clk 0:00:03.4]} 43. d7 {[%clk 0:00:18.5]} 43...
Bxd7 {[%clk 0:00:03.2]} 44. Rxd7 {[%clk 0:00:19.4]} 44... Rxe5 {[%clk
0:00:03.9]} 45. b4 {[%clk 0:00:19.5]} 1-0

[Event "Late-Titled-Tuesday-Blitz-November-28-2023"]
[Site "Chess.com"]
[Date "2023.11.28"]
[Round "7"]
[White "reevecanada"]
[Black "stasOR4ik"]
[Result "0-1"]
[WhiteElo "2624"]
[BlackElo "2493"]
[TimeControl "180+1"]
[EndTime "15:15:23 PST"]
[Termination "stasOR4ik won by checkmate"]

1. d4 {[%clk 0:03:00.9]} 1... c6 {[%clk 0:03:00.9]} 2. Bf4 {[%clk 0:03:00.3]}
2... d5 {[%clk 0:03:01.8]} 3. e3 {[%clk 0:03:00.5]} 3... Nf6 {[%clk 0:03:02.3]}
4. c3 {[%clk 0:03:00.5]} 4... Ne4 {[%clk 0:03:02.7]} 5. Bd3 {[%clk 0:03:00.4]}
5... f5 {[%clk 0:03:02.8]} 6. f3 {[%clk 0:02:59.7]} 6... Nd6 {[%clk 0:03:02.8]}
7. Nd2 {[%clk 0:02:59.2]} 7... e6 {[%clk 0:03:01.6]} 8. Qe2 {[%clk 0:02:57.5]}
8... g5 {[%clk 0:02:58.6]} 9. Be5 {[%clk 0:02:56.8]} 9... Rg8 {[%clk 0:02:56.8]}
10. e4 {[%clk 0:02:56.3]} 10... Nd7 {[%clk 0:02:54.1]} 11. exf5 {[%clk
0:02:52.1]} 11... Nxe5 {[%clk 0:02:52.5]} 12. Qxe5 {[%clk 0:02:51.7]} 12... Bg7
{[%clk 0:02:51.9]} 13. Qe2 {[%clk 0:02:48.8]} 13... Qf6 {[%clk 0:02:45.9]} 14.
fxe6 {[%clk 0:02:38.6]} 14... Bxe6 {[%clk 0:02:46.8]} 15. Bxh7 {[%clk
0:02:36.6]} 15... Rh8 {[%clk 0:02:45.1]} 16. Bd3 {[%clk 0:02:34.2]} 16... O-O-O
{[%clk 0:02:43.7]} 17. O-O-O {[%clk 0:02:34]} 17... b5 {[%clk 0:02:37.6]} 18.
Qf2 {[%clk 0:02:32.6]} 18... b4 {[%clk 0:02:29.9]} 19. Nb3 {[%clk 0:02:30.6]}
19... Nc4 {[%clk 0:02:14.3]} 20. Bxc4 {[%clk 0:02:28.2]} 20... dxc4 {[%clk
0:02:13.2]} 21. Nc5 {[%clk 0:02:28.6]} 21... Bf5 {[%clk 0:01:47.1]} 22. Qf1
{[%clk 0:02:21.7]} 22... Bd3 {[%clk 0:01:41.1]} 23. Nxd3 {[%clk 0:02:19.7]}
23... bxc3 {[%clk 0:01:38.9]} 24. bxc3 {[%clk 0:01:51.4]} 24... Rxd4 {[%clk
0:01:34.5]} 25. cxd4 {[%clk 0:01:32.2]} 25... Qxd4 {[%clk 0:01:35.4]} 26. Qf2
{[%clk 0:01:30.9]} 26... Qa1+ {[%clk 0:01:31]} 27. Kd2 {[%clk 0:01:27.6]} 27...
Bc3+ {[%clk 0:01:15]} 28. Kc2 {[%clk 0:00:46.2]} 28... cxd3+ {[%clk 0:01:12.2]}
29. Kxd3 {[%clk 0:00:22.4]} 29... Rd8+ {[%clk 0:01:09.5]} 30. Kc4 {[%clk
0:00:22.2]} 30... Rxd1 {[%clk 0:00:41.3]} 31. Ne2 {[%clk 0:00:16.4]} 31... Qxa2+
{[%clk 0:00:27.2]} 32. Kxc3 {[%clk 0:00:15.7]} 32... Qd2+ {[%clk 0:00:21.5]} 33.
Kc4 {[%clk 0:00:10]} 33... Rxh1 {[%clk 0:00:19.5]} 34. f4 {[%clk 0:00:07.4]}
34... Rc1+ {[%clk 0:00:17.7]} 35. Nxc1 {[%clk 0:00:07.2]} 35... Qxf2 {[%clk
0:00:17.7]} 36. Nd3 {[%clk 0:00:08.1]} 36... Qxg2 {[%clk 0:00:17.6]} 37. Kd4
{[%clk 0:00:09]} 37... Qd5+ {[%clk 0:00:17.4]} 38. Ke3 {[%clk 0:00:08.2]} 38...
gxf4+ {[%clk 0:00:17.9]} 39. Nxf4 {[%clk 0:00:09.1]} 39... Qh1 {[%clk
0:00:17.7]} 40. h3 {[%clk 0:00:08.5]} 40... Qh2 {[%clk 0:00:17.1]} 41. Kf3
{[%clk 0:00:08.6]} 41... a5 {[%clk 0:00:17]} 42. Kg4 {[%clk 0:00:09.3]} 42... a4
{[%clk 0:00:17.2]} 43. h4 {[%clk 0:00:10.2]} 43... a3 {[%clk 0:00:17.5]} 44. h5
{[%clk 0:00:09.4]} 44... a2 {[%clk 0:00:17.9]} 45. h6 {[%clk 0:00:10]} 45...
a1=Q {[%clk 0:00:17.9]} 46. Ng6 {[%clk 0:00:10.9]} 46... Qag1+ {[%clk 0:00:18]}
47. Kf5 {[%clk 0:00:11.2]} 47... Qhf2+ {[%clk 0:00:17.8]} 48. Ke6 {[%clk
0:00:10.9]} 48... Qge1+ {[%clk 0:00:17.6]} 49. Ne5 {[%clk 0:00:10.3]} 49... Qf4
{[%clk 0:00:17.4]} 50. Kd6 {[%clk 0:00:09]} 50... Qexe5+ {[%clk 0:00:17.5]} 51.
Kxc6 {[%clk 0:00:09.9]} 51... Qc4+ {[%clk 0:00:17.1]} 52. Kb6 {[%clk 0:00:10.2]}
52... Qeb5+ {[%clk 0:00:17.5]} 53. Ka7 {[%clk 0:00:09.7]} 53... Qca4# {[%clk
0:00:18.4]} 0-1

[Event "Late-Titled-Tuesday-Blitz-November-28-2023"]
[Site "Chess.com"]
[Date "2023.11.28"]
[Round "7"]
[White "Likvidator228"]
[Black "Haykoooo0o"]
[Result "1-0"]
[WhiteElo "2564"]
[BlackElo "2429"]
[TimeControl "180+1"]
[EndTime "15:15:32 PST"]
[Termination "Likvidator228 won on time"]

1. d4 {[%clk 0:02:56.3]} 1... d5 {[%clk 0:02:52.5]} 2. Bf4 {[%clk 0:02:56.1]}
2... Nf6 {[%clk 0:02:51.9]} 3. e3 {[%clk 0:02:56.3]} 3... c5 {[%clk 0:02:52.3]}
4. c3 {[%clk 0:02:56.5]} 4... Nc6 {[%clk 0:02:51.6]} 5. Nd2 {[%clk 0:02:56.6]}
5... cxd4 {[%clk 0:02:49.3]} 6. exd4 {[%clk 0:02:54.9]} 6... Bg4 {[%clk
0:02:49.8]} 7. Qb3 {[%clk 0:02:54.5]} 7... Qd7 {[%clk 0:02:50.2]} 8. Ngf3 {[%clk
0:02:46.2]} 8... Bxf3 {[%clk 0:02:49.1]} 9. Nxf3 {[%clk 0:02:46]} 9... e6 {[%clk
0:02:49.8]} 10. Bd3 {[%clk 0:02:45]} 10... Bd6 {[%clk 0:02:49.6]} 11. Bxd6
{[%clk 0:02:43.1]} 11... Qxd6 {[%clk 0:02:50.5]} 12. O-O {[%clk 0:02:40.6]}
12... O-O {[%clk 0:02:49.9]} 13. Rfe1 {[%clk 0:02:40.5]} 13... Qc7 {[%clk
0:02:49.9]} 14. Ne5 {[%clk 0:02:37.8]} 14... Nxe5 {[%clk 0:02:49.7]} 15. Rxe5
{[%clk 0:02:34]} 15... a6 {[%clk 0:02:44.1]} 16. a4 {[%clk 0:02:29.5]} 16...
Rab8 {[%clk 0:02:40.4]} 17. h3 {[%clk 0:02:26.9]} 17... b5 {[%clk 0:02:31]} 18.
axb5 {[%clk 0:02:26.3]} 18... axb5 {[%clk 0:02:31.9]} 19. Qb4 {[%clk 0:02:19.3]}
19... Ra8 {[%clk 0:01:58.3]} 20. Ree1 {[%clk 0:02:18.4]} 20... Rfb8 {[%clk
0:01:34.2]} 21. Bxb5 {[%clk 0:01:29.6]} 21... Rxa1 {[%clk 0:01:15]} 22. Rxa1
{[%clk 0:01:29]} 22... g6 {[%clk 0:01:15.4]} 23. b3 {[%clk 0:01:15.4]} 23... Ne4
{[%clk 0:01:02.7]} 24. c4 {[%clk 0:01:15.6]} 24... Nd6 {[%clk 0:00:43.6]} 25.
Qa5 {[%clk 0:01:04.9]} 25... Nxb5 {[%clk 0:00:43.7]} 26. cxb5 {[%clk 0:01:01.4]}
26... Qc2 {[%clk 0:00:14.8]} 27. Qb4 {[%clk 0:00:51.1]} 27... Qc7 {[%clk
0:00:09.1]} 28. g3 {[%clk 0:00:47.4]} 28... Kg7 {[%clk 0:00:08.7]} 29. Ra6
{[%clk 0:00:37.9]} 29... Qb7 {[%clk 0:00:07.9]} 30. Ra5 {[%clk 0:00:29]} 30...
Qc7 {[%clk 0:00:07.5]} 31. Kg2 {[%clk 0:00:28.1]} 31... Rb6 {[%clk 0:00:04.8]}
32. Ra6 {[%clk 0:00:25.4]} 32... Rb7 {[%clk 0:00:01.7]} 33. Rc6 {[%clk
0:00:18.2]} 33... Qd7 {[%clk 0:00:01.6]} 34. Qc5 {[%clk 0:00:16.8]} 34... Qe7
{[%clk 0:00:01.5]} 35. b6 {[%clk 0:00:11]} 35... Qf6 {[%clk 0:00:01.3]} 36. Rc7
{[%clk 0:00:09.8]} 36... Rb8 {[%clk 0:00:01.3]} 37. b7 {[%clk 0:00:08.7]} 37...
Qf5 {[%clk 0:00:01.7]} 38. Qe7 {[%clk 0:00:07.3]} 38... Qe4+ {[%clk 0:00:01.6]}
39. Kh2 {[%clk 0:00:07.7]} 39... Qf5 {[%clk 0:00:01.1]} 40. Kg1 {[%clk 0:00:06]}
40... Qb1+ {[%clk 0:00:01.1]} 41. Kh2 {[%clk 0:00:06]} 41... Qf5 {[%clk
0:00:01.7]} 42. Kg2 {[%clk 0:00:02.4]} 42... Qe4+ {[%clk 0:00:02]} 43. Kf1
{[%clk 0:00:02.5]} 43... Qd3+ {[%clk 0:00:01.6]} 44. Kg1 {[%clk 0:00:02.7]} 1-0

[Event "Late-Titled-Tuesday-Blitz-November-28-2023"]
[Site "Chess.com"]
[Date "2023.11.28"]
[Round "7"]
[White "Oleksandr_Bortnyk"]
[Black "LiemLe"]
[Result "1-0"]
[WhiteElo "3076"]
[BlackElo "3123"]
[TimeControl "180+1"]
[EndTime "15:15:34 PST"]
[Termination "Oleksandr_Bortnyk won on time"]

1. e4 {[%clk 0:02:52.3]} 1... c5 {[%clk 0:03:00]} 2. c3 {[%clk 0:02:52.2]} 2...
Nf6 {[%clk 0:02:58.7]} 3. e5 {[%clk 0:02:52.4]} 3... Nd5 {[%clk 0:02:59]} 4. d4
{[%clk 0:02:53.3]} 4... cxd4 {[%clk 0:02:58.5]} 5. Nf3 {[%clk 0:02:54.1]} 5...
d6 {[%clk 0:02:58.5]} 6. cxd4 {[%clk 0:02:53.1]} 6... Nc6 {[%clk 0:02:57.9]} 7.
Bc4 {[%clk 0:02:53.5]} 7... Nb6 {[%clk 0:02:57.3]} 8. Bb5 {[%clk 0:02:53.5]}
8... dxe5 {[%clk 0:02:57.4]} 9. Nxe5 {[%clk 0:02:54.4]} 9... Bd7 {[%clk
0:02:57.8]} 10. Nxd7 {[%clk 0:02:54.8]} 10... Qxd7 {[%clk 0:02:58.7]} 11. Nc3
{[%clk 0:02:54.8]} 11... e6 {[%clk 0:02:59.2]} 12. O-O {[%clk 0:02:54]} 12...
Be7 {[%clk 0:02:55.7]} 13. Bxc6 {[%clk 0:02:53.7]} 13... Qxc6 {[%clk 0:02:53.3]}
14. Qg4 {[%clk 0:02:54]} 14... Bf6 {[%clk 0:02:40]} 15. Rd1 {[%clk 0:02:52.1]}
15... h5 {[%clk 0:02:38.4]} 16. Qh3 {[%clk 0:02:45.1]} 16... Rd8 {[%clk
0:02:37.7]} 17. Be3 {[%clk 0:02:45.3]} 17... Nd5 {[%clk 0:02:27.4]} 18. Ne4
{[%clk 0:02:31.4]} 18... Be7 {[%clk 0:02:13.4]} 19. Rac1 {[%clk 0:02:25.8]}
19... Qb6 {[%clk 0:02:12.6]} 20. b3 {[%clk 0:02:01.7]} 20... f6 {[%clk
0:01:56.9]} 21. Re1 {[%clk 0:01:47.7]} 21... Kf7 {[%clk 0:01:56.3]} 22. Qf3
{[%clk 0:01:41.1]} 22... h4 {[%clk 0:01:36.9]} 23. h3 {[%clk 0:01:33.1]} 23...
Qa6 {[%clk 0:01:14.8]} 24. Bd2 {[%clk 0:01:29.7]} 24... Kg8 {[%clk 0:01:13.8]}
25. a4 {[%clk 0:01:28.2]} 25... Qb6 {[%clk 0:00:56.3]} 26. Nc5 {[%clk
0:01:24.9]} 26... Bxc5 {[%clk 0:00:56.8]} 27. dxc5 {[%clk 0:01:25.8]} 27... Qc6
{[%clk 0:00:56.6]} 28. b4 {[%clk 0:01:26.5]} 28... Nc7 {[%clk 0:00:46.8]} 29.
Qe2 {[%clk 0:00:58.9]} 29... a6 {[%clk 0:00:45.6]} 30. b5 {[%clk 0:00:53.5]}
30... axb5 {[%clk 0:00:45.5]} 31. Ba5 {[%clk 0:00:54.3]} 31... bxa4 {[%clk
0:00:40.7]} 32. Bxc7 {[%clk 0:00:47.2]} 32... Qxc7 {[%clk 0:00:41.6]} 33. Qxe6+
{[%clk 0:00:47.3]} 33... Qf7 {[%clk 0:00:38.6]} 34. Qb6 {[%clk 0:00:43.9]} 34...
Kh7 {[%clk 0:00:38.1]} 35. Qb4 {[%clk 0:00:36]} 35... Qh5 {[%clk 0:00:19.2]} 36.
Qxb7 {[%clk 0:00:29.9]} 36... Rhe8 {[%clk 0:00:13.5]} 37. Rxe8 {[%clk
0:00:24.1]} 37... Rxe8 {[%clk 0:00:14.4]} 38. c6 {[%clk 0:00:23.8]} 38... Qg5
{[%clk 0:00:11.9]} 39. Qb2 {[%clk 0:00:20.8]} 39... Qe5 {[%clk 0:00:10]} 40.
Qc2+ {[%clk 0:00:19.9]} 40... Kh8 {[%clk 0:00:08.8]} 41. Qxa4 {[%clk 0:00:19.8]}
41... Qg5 {[%clk 0:00:09.2]} 42. Rd1 {[%clk 0:00:15.9]} 42... Rc8 {[%clk
0:00:05]} 43. Rd4 {[%clk 0:00:15.9]} 43... Qc1+ {[%clk 0:00:04.7]} 44. Kh2
{[%clk 0:00:15.5]} 44... Qxc6 {[%clk 0:00:05.6]} 45. Rxh4+ {[%clk 0:00:14.7]}
45... Kg8 {[%clk 0:00:06]} 46. Qb3+ {[%clk 0:00:14.3]} 46... Kf8 {[%clk
0:00:06]} 47. Rh8+ {[%clk 0:00:13.4]} 47... Ke7 {[%clk 0:00:06.7]} 48. Qa3+
{[%clk 0:00:06.5]} 48... Kf7 {[%clk 0:00:06.2]} 49. Qb3+ {[%clk 0:00:06.6]}
49... Ke7 {[%clk 0:00:06.2]} 50. Rh7 {[%clk 0:00:06]} 50... Qd6+ {[%clk
0:00:05.9]} 51. g3 {[%clk 0:00:05.6]} 1-0

[Event "Late-Titled-Tuesday-Blitz-November-28-2023"]
[Site "Chess.com"]
[Date "2023.11.28"]
[Round "7"]
[White "cthulhuuu"]
[Black "Mikasinski"]
[Result "0-1"]
[WhiteElo "2501"]
[BlackElo "2714"]
[TimeControl "180+1"]
[EndTime "15:15:37 PST"]
[Termination "Mikasinski won on time"]

1. e4 {[%clk 0:02:59.2]} 1... c5 {[%clk 0:02:59.7]} 2. Nf3 {[%clk 0:02:59.4]}
2... d6 {[%clk 0:03:00.3]} 3. g3 {[%clk 0:02:59.2]} 3... g6 {[%clk 0:02:59.4]}
4. Bg2 {[%clk 0:02:59.5]} 4... Bg7 {[%clk 0:02:59.9]} 5. O-O {[%clk 0:02:59.9]}
5... Nc6 {[%clk 0:03:00.4]} 6. d3 {[%clk 0:02:59.4]} 6... Nf6 {[%clk 0:03:00.5]}
7. Re1 {[%clk 0:02:59.5]} 7... O-O {[%clk 0:03:00.9]} 8. e5 {[%clk 0:03:00.1]}
8... dxe5 {[%clk 0:03:00.7]} 9. Nxe5 {[%clk 0:03:01]} 9... Nxe5 {[%clk
0:03:01.2]} 10. Rxe5 {[%clk 0:03:00.9]} 10... Qc7 {[%clk 0:03:01.8]} 11. Bf4
{[%clk 0:03:00.2]} 11... Qb6 {[%clk 0:03:01.8]} 12. Nc3 {[%clk 0:03:00.2]} 12...
Qxb2 {[%clk 0:02:57.5]} 13. Rxc5 {[%clk 0:02:59.4]} 13... Nh5 {[%clk 0:02:57.2]}
14. Bd2 {[%clk 0:02:35.4]} 14... Qa3 {[%clk 0:02:52.3]} 15. Rc7 {[%clk
0:02:29.1]} 15... a6 {[%clk 0:02:37.4]} 16. Rb1 {[%clk 0:02:16.2]} 16... Be6
{[%clk 0:02:33.6]} 17. Rbxb7 {[%clk 0:01:55.5]} 17... Be5 {[%clk 0:02:32.4]} 18.
Nb1 {[%clk 0:01:51.2]} 18... Qxa2 {[%clk 0:02:31.4]} 19. Rxe7 {[%clk 0:01:45.2]}
19... Rac8 {[%clk 0:02:31.7]} 20. c4 {[%clk 0:01:35.3]} 20... Rcd8 {[%clk
0:02:26.1]} 21. Nc3 {[%clk 0:01:23.1]} 21... Qa3 {[%clk 0:02:13.3]} 22. Qc2
{[%clk 0:01:10.7]} 22... Bd6 {[%clk 0:02:01.3]} 23. Nb1 {[%clk 0:00:38.7]} 23...
Qc5 {[%clk 0:01:34]} 24. Bb4 {[%clk 0:00:39]} 24... Qe5 {[%clk 0:01:16.4]} 25.
Bxd6 {[%clk 0:00:35.9]} 25... Rxd6 {[%clk 0:01:11.5]} 26. Bd5 {[%clk 0:00:21.8]}
26... Qe1+ {[%clk 0:01:08.6]} 27. Kg2 {[%clk 0:00:22.3]} 27... Rxd5 {[%clk
0:01:09.2]} 28. cxd5 {[%clk 0:00:20.4]} 28... Bxd5+ {[%clk 0:01:09.4]} 29. f3
{[%clk 0:00:20]} 29... Qa5 {[%clk 0:01:02.1]} 30. Rbd7 {[%clk 0:00:18.7]} 30...
Nf6 {[%clk 0:00:55.9]} 31. Qc3 {[%clk 0:00:10.6]} 31... Qa2+ {[%clk 0:00:53.5]}
32. Nd2 {[%clk 0:00:09.6]} 32... Nxd7 {[%clk 0:00:48.5]} 33. Rxd7 {[%clk
0:00:10.5]} 33... Re8 {[%clk 0:00:45.8]} 34. Kf2 {[%clk 0:00:06.2]} 34... Be6
{[%clk 0:00:41.8]} 35. Rc7 {[%clk 0:00:05.7]} 35... h5 {[%clk 0:00:36.4]} 36.
Qc2 {[%clk 0:00:06.1]} 36... Qd5 {[%clk 0:00:32.5]} 37. Ne4 {[%clk 0:00:06.3]}
37... Qd4+ {[%clk 0:00:32.7]} 38. Kg2 {[%clk 0:00:06.3]} 38... Bf5 {[%clk
0:00:31.6]} 39. Qc3 {[%clk 0:00:06.3]} 39... Rd8 {[%clk 0:00:27.5]} 40. Qxd4
{[%clk 0:00:03.1]} 40... Rxd4 {[%clk 0:00:27.8]} 41. Rc3 {[%clk 0:00:03.5]}
41... a5 {[%clk 0:00:28.3]} 42. Kf2 {[%clk 0:00:03.9]} 42... Rb4 {[%clk
0:00:27.1]} 43. Ke3 {[%clk 0:00:04.2]} 43... Rb2 {[%clk 0:00:26.9]} 44. h4
{[%clk 0:00:03.1]} 44... Ra2 {[%clk 0:00:27.3]} 45. Kf4 {[%clk 0:00:03.3]} 45...
Kg7 {[%clk 0:00:27.4]} 46. g4 {[%clk 0:00:02.2]} 46... hxg4 {[%clk 0:00:26.5]}
47. fxg4 {[%clk 0:00:03.1]} 47... Be6 {[%clk 0:00:27.1]} 48. g5 {[%clk
0:00:02.3]} 48... a4 {[%clk 0:00:25.4]} 49. Nf6 {[%clk 0:00:02.4]} 49... Rh2
{[%clk 0:00:19.9]} 0-1

[Event "Late-Titled-Tuesday-Blitz-November-28-2023"]
[Site "Chess.com"]
[Date "2023.11.28"]
[Round "7"]
[White "vladgoncharov"]
[Black "OneTrickPony_82"]
[Result "1-0"]
[WhiteElo "2619"]
[BlackElo "2467"]
[TimeControl "180+1"]
[EndTime "15:15:37 PST"]
[Termination "vladgoncharov won on time"]

1. d4 {[%clk 0:03:00.9]} 1... Nf6 {[%clk 0:02:59.4]} 2. c4 {[%clk 0:02:57.1]}
2... e6 {[%clk 0:02:59.2]} 3. Nc3 {[%clk 0:02:57.3]} 3... d5 {[%clk 0:02:59]} 4.
cxd5 {[%clk 0:02:56.5]} 4... exd5 {[%clk 0:02:59.2]} 5. Bg5 {[%clk 0:02:56.4]}
5... Be7 {[%clk 0:02:59.5]} 6. e3 {[%clk 0:02:56.7]} 6... h6 {[%clk 0:02:59.8]}
7. Bh4 {[%clk 0:02:56.2]} 7... O-O {[%clk 0:02:59]} 8. Bd3 {[%clk 0:02:56.2]}
8... c6 {[%clk 0:02:58.5]} 9. Nge2 {[%clk 0:02:55.5]} 9... Nbd7 {[%clk
0:02:57.6]} 10. O-O {[%clk 0:02:53.7]} 10... Re8 {[%clk 0:02:57.9]} 11. a3
{[%clk 0:02:45.3]} 11... a5 {[%clk 0:02:48.6]} 12. Rb1 {[%clk 0:02:43.6]} 12...
Nh5 {[%clk 0:02:42.9]} 13. Bxe7 {[%clk 0:02:40.1]} 13... Qxe7 {[%clk 0:02:43.8]}
14. Rc1 {[%clk 0:02:35.4]} 14... g6 {[%clk 0:02:30.5]} 15. Na4 {[%clk
0:02:34.6]} 15... Qh4 {[%clk 0:02:24.5]} 16. Nc5 {[%clk 0:02:28.8]} 16... Ndf6
{[%clk 0:02:21.2]} 17. Ng3 {[%clk 0:02:09.8]} 17... Ng4 {[%clk 0:02:01.5]} 18.
h3 {[%clk 0:02:09.4]} 18... Nxe3 {[%clk 0:01:43]} 19. fxe3 {[%clk 0:02:09.4]}
19... Qxg3 {[%clk 0:01:37.1]} 20. Rf3 {[%clk 0:02:09.1]} 20... Qg5 {[%clk
0:01:36.5]} 21. e4 {[%clk 0:02:03.9]} 21... b6 {[%clk 0:01:32.6]} 22. exd5
{[%clk 0:02:01.1]} 22... bxc5 {[%clk 0:01:31]} 23. Rxc5 {[%clk 0:01:58.1]} 23...
Nf4 {[%clk 0:01:15.5]} 24. Bf1 {[%clk 0:01:47.5]} 24... cxd5 {[%clk 0:01:07.1]}
25. Kh2 {[%clk 0:01:43.1]} 25... Ne6 {[%clk 0:00:41.2]} 26. Rg3 {[%clk
0:01:43.3]} 26... Qf4 {[%clk 0:00:38.2]} 27. Rc3 {[%clk 0:01:43]} 27... Ng5
{[%clk 0:00:29.5]} 28. Bd3 {[%clk 0:01:32.6]} 28... Ba6 {[%clk 0:00:29]} 29. Bb1
{[%clk 0:01:29]} 29... Re2 {[%clk 0:00:22.6]} 30. Rc6 {[%clk 0:01:17]} 30... Re3
{[%clk 0:00:12.9]} 31. Qg4 {[%clk 0:01:13.5]} 31... Qxg3+ {[%clk 0:00:11.6]} 32.
Qxg3 {[%clk 0:01:13.5]} 32... Rxg3 {[%clk 0:00:12.2]} 33. Kxg3 {[%clk
0:01:13.8]} 33... Bb7 {[%clk 0:00:11.3]} 34. Rb6 {[%clk 0:01:12.2]} 34... Bc8
{[%clk 0:00:11.2]} 35. Ba2 {[%clk 0:01:10.7]} 35... Ne4+ {[%clk 0:00:11]} 36.
Kf4 {[%clk 0:01:09.9]} 36... Be6 {[%clk 0:00:11.5]} 37. g4 {[%clk 0:01:10]}
37... Rc8 {[%clk 0:00:11.3]} 38. Rb5 {[%clk 0:01:08.6]} 38... a4 {[%clk
0:00:11]} 39. Bxd5 {[%clk 0:01:08]} 39... Bxd5 {[%clk 0:00:10.7]} 40. Rxd5
{[%clk 0:01:08]} 40... Nf6 {[%clk 0:00:10.5]} 41. Ra5 {[%clk 0:01:07.5]} 41...
Rc4 {[%clk 0:00:10.4]} 42. Ke5 {[%clk 0:01:06.3]} 42... Ne8 {[%clk 0:00:10.4]}
43. d5 {[%clk 0:01:04.5]} 43... Kf8 {[%clk 0:00:09.7]} 44. d6 {[%clk 0:01:04.5]}
44... Rc8 {[%clk 0:00:02.9]} 45. d7 {[%clk 0:01:00.5]} 45... Rd8 {[%clk
0:00:03.5]} 46. dxe8=Q+ {[%clk 0:00:50.4]} 46... Rxe8+ {[%clk 0:00:04.4]} 47.
Kd4 {[%clk 0:00:50.2]} 47... Rb8 {[%clk 0:00:04.2]} 48. Rxa4 {[%clk 0:00:48.5]}
48... Rb3 {[%clk 0:00:04.8]} 49. Rb4 {[%clk 0:00:47.9]} 49... Rxh3 {[%clk
0:00:05.4]} 50. a4 {[%clk 0:00:47.6]} 50... Rg3 {[%clk 0:00:05]} 51. Ke5 {[%clk
0:00:47.7]} 51... Re3+ {[%clk 0:00:02.8]} 52. Kf4 {[%clk 0:00:47.2]} 52... Re6
{[%clk 0:00:02.4]} 53. a5 {[%clk 0:00:47.5]} 53... Ra6 {[%clk 0:00:02.5]} 54.
Rb5 {[%clk 0:00:47.1]} 54... Ke7 {[%clk 0:00:03.4]} 55. b4 {[%clk 0:00:47.3]}
55... Kd6 {[%clk 0:00:03.1]} 56. Rb7 {[%clk 0:00:46.7]} 56... f6 {[%clk
0:00:02.6]} 57. Ke4 {[%clk 0:00:44.1]} 57... h5 {[%clk 0:00:01.1]} 58. gxh5
{[%clk 0:00:43.1]} 58... gxh5 {[%clk 0:00:02]} 59. Kd4 {[%clk 0:00:43.5]} 59...
Kc6 {[%clk 0:00:01.9]} 60. Rh7 {[%clk 0:00:41]} 60... Kb5 {[%clk 0:00:01.9]} 61.
Kc3 {[%clk 0:00:41.2]} 61... Rc6+ {[%clk 0:00:01.8]} 62. Kb3 {[%clk 0:00:41.5]}
62... Re6 {[%clk 0:00:01.9]} 63. Rxh5+ {[%clk 0:00:41.2]} 63... Ka6 {[%clk
0:00:01.5]} 64. Rf5 {[%clk 0:00:41.2]} 1-0